bitfinex-derivatives/quotes_SOLF0:USTF0_20250831
["timestamp","ask_amount","ask_price","bid_price","bid_amount"]
[1756657756981,119.88,204.24,204.17,4.49517598]
[1756657757279,119.88,204.24,204.18,4.49517598]
[1756657757482,119.88,204.24,204.19,4.49517598]
[1756657757683,119.88,204.24,204.2,4.49517598]
[1756657757982,119.88,204.24,204.21,4.49517598]
[1756657758184,119.88,204.24,204.22,4.49517598]
[1756657758386,119.88,204.24,204.23,4.49517598]
[1756657765083,119.88,204.24,204.18,7.61]
[1756657765388,119.88,204.24,204.19,12.09486556]
[1756657765588,119.88,204.24,204.2,12.09486556]
[1756657765788,119.88,204.24,204.21,4.48486556]
[1756657765981,119.88,204.24,204.22,4.48486556]
[1756657766185,119.88,204.24,204.19,7.61]
[1756657766186,119.88,204.24,204.23,4.4848449]
[1756657768095,119.88,204.24,204.19,7.61]
[1756657768290,119.88,204.24,204.2,4.48265308]
[1756657768592,119.88,204.24,204.21,4.48265308]
[1756657768890,119.88,204.24,204.22,4.48265308]
[1756657769190,119.88,204.24,204.16,7.61]
[1756657769393,119.88,204.24,204.17,4.4822572]
[1756657769592,119.88,204.24,204.18,4.4822572]
[1756657769894,119.88,204.24,204.19,4.4822572]
[1756657770094,119.88,204.24,204.2,4.4822572]
[1756657770394,119.88,204.24,204.21,4.4822572]
[1756657770595,119.88,204.24,204.16,7.61]
[1756657770797,119.88,204.24,204.17,4.48229987]
[1756657770996,119.88,204.24,204.18,4.48229987]
[1756657771188,119.88,204.24,204.19,4.48229987]
[1756657771396,119.82,204.23,204.2,12.09229987]
[1756657771594,119.82,204.22,204.21,4.48229987]
[1756657776802,119.82,204.22,204.14,10.63574324]
[1756657777002,119.82,204.22,204.15,4.48394817]
[1756657777203,119.82,204.22,204.16,4.48394817]
[1756657777501,119.82,204.22,204.14,7.61]
[1756657777502,119.82,204.22,204.17,4.48394817]
[1756657777801,119.82,204.22,204.18,4.48394817]
[1756657777997,119.82,204.22,204.19,4.48394817]
[1756657778201,119.82,204.22,204.2,4.48394817]
[1756657778404,119.82,204.22,204.21,4.48394817]
[1756657779503,119.82,204.22,204.21,4.48702093]
[1756657786613,3.02574324,204.23,204.21,4.48702093]
[1756657786808,3.02574324,204.23,204.22,4.50855706]
[1756657787112,122.82574324,204.23,204.22,4.50855706]
[1756657787303,122.82574324,204.23,204.14,7.61]
[1756657787503,122.82574324,204.23,204.15,4.51013242]
[1756657787806,122.82574324,204.23,204.16,4.51013242]
[1756657788005,122.82574324,204.23,204.17,4.51013242]
[1756657788208,122.82574324,204.23,204.18,4.51013242]
[1756657788508,122.82574324,204.23,204.19,4.51013242]
[1756657788708,122.82574324,204.23,204.2,4.51013242]
[1756657788905,122.82574324,204.23,204.21,4.51013242]
[1756657789207,122.82574324,204.23,204.22,4.51013242]
[1756657791316,119.8,204.23,204.22,4.51013242]
[1756657793915,120.28,204.23,204.12,7.37]
[1756657794217,3.02574324,204.2,204.12,7.37]
[1756657794419,119.8,204.19,204.12,7.37]
[1756657800423,119.8,204.19,204.05,5.47083392]
[1756657800424,3.02574324,204.17,204.08,7.37]
[1756657800620,119.8,204.16,204.08,7.37]
[1756657800820,119.8,204.15,204.09,7.37]
[1756657802822,119.8,204.14,204.08,7.37]
[1756657804327,3.02574324,204.17,204.08,7.37]
[1756657804525,119.82,204.13,204.08,7.37]
[1756657805423,119.82,204.13,204.05,10.39574324]
[1756657806122,63.9186,204.13,204.02,4.11403598]
[1756657806329,63.9186,204.13,204.02,7.37]
[1756657807127,3.02574324,204.11,204.02,7.37]
[1756657808926,3.02574324,204.08,203.98,7.92]
[1756657814333,3.02574324,204.06,203.98,7.92]
[1756657814534,17.54,204.05,203.98,7.92]
[1756657816231,3.02574324,204.03,203.93,7.92]
[1756657817137,3.02574324,204.0,203.93,7.92]
[1756657818237,3.02574324,204.03,203.93,7.92]
[1756657818442,9.74574324,204.02,203.93,7.92]
[1756657820041,9.74574324,204.02,203.9,10.94574324]
[1756657820234,3.02574324,203.99,203.9,7.92]
[1756657820638,3.02574324,203.96,203.9,7.92]
[1756657821133,3.02574324,203.96,203.85,7.92]
[1756657826849,14.74,203.95,203.85,7.92]
[1756657830147,3.02574324,203.94,203.85,7.92]
[1756657831148,3.02574324,203.94,203.76,7.92]
[1756657831356,3.02574324,203.91,203.79,7.92]
[1756657831853,14.74,203.95,203.79,7.92]
[1756657832157,3.02574324,203.91,203.79,7.92]
[1756657832548,3.02574324,203.94,203.79,7.92]
[1756657832751,3.02574324,203.86,203.79,7.92]
[1756657833054,25.06,203.85,203.79,7.92]
[1756657833955,25.06,203.85,203.73,7.92]
[1756657834554,3.02574324,203.84,203.73,7.92]
[1756657835356,28.08574324,203.85,203.73,7.92]
[1756657836155,25.06,203.85,203.73,7.92]
[1756657836359,28.08574324,203.85,203.73,7.92]
[1756657837159,3.02574324,203.94,203.73,7.92]
[1756657837357,3.02574324,203.87,203.76,7.92]
[1756657837753,3.02574324,203.84,203.76,7.92]
[1756657837957,4.06,203.83,203.76,7.92]
[1756657838459,6.86,203.83,203.76,7.92]
[1756657850872,6.86,203.83,203.78,3.02574324]
[1756657851371,6.86,203.83,203.79,7.52]
[1756657852567,6.52,203.9,203.81,3.02574324]
[1756657852771,3.02574324,203.95,203.82,7.52]
[1756657852972,17.38,203.94,203.82,7.52]
[1756657854171,3.02574324,203.92,203.78,3.02574324]
[1756657854370,17.38,203.94,203.78,10.54574324]
[1756657854371,3.02574324,203.89,203.78,10.54574324]
[1756657854570,3.02574324,203.89,203.78,7.52]
[1756657855771,20.40574324,203.94,203.78,7.52]
[1756657856069,20.40574324,203.94,203.72,3.02574324]
[1756657856070,33.6,203.93,203.8,10.54574324]
[1756657857476,33.6,203.93,203.81,7.52]
[1756657858573,3.02574324,203.92,203.81,7.52]
[1756657859669,33.6,203.93,203.81,7.52]
[1756657860380,329.44,204.0,203.87,7.52]
[1756657860381,332.46574324,204.0,203.87,7.52]
[1756657860580,120.34,203.99,203.87,7.52]
[1756657863581,120.34,203.99,203.83,7.52]
[1756657863582,3.02574324,203.94,203.83,7.52]
[1756657871789,3.02574324,203.97,203.85,3.02574324]
[1756657872187,3.02574324,203.97,203.86,7.87]
[1756657874394,3.02574324,203.97,203.88,7.87]
[1756657878694,120.34,203.99,203.88,7.87]
[1756657878996,120.34,203.99,203.9,7.87]
[1756657882295,120.34,203.99,203.84,7.87]
[1756657882296,3.02574324,203.94,203.84,7.87]
[1756657882493,21.68,203.93,203.84,7.87]
[1756657883397,3.02574324,203.91,203.84,7.87]
[1756657884298,21.68,203.93,203.84,7.87]
[1756657886798,37.38,203.93,203.86,7.87]
[1756657888096,3.02574324,203.98,203.86,7.87]
[1756657888301,120.5,203.97,203.89,7.87]
[1756657891400,329.44,204.0,203.91,3.02574324]
[1756657891704,120.54,203.99,203.92,7.87]
[1756657896607,120.54,203.99,203.88,7.87]
[1756657896808,120.54,203.99,203.88,10.89574324]
[1756657897998,120.54,203.99,203.88,7.87]
[1756657898399,3.02574324,203.98,203.88,7.87]
[1756657900912,123.56574324,203.99,203.88,7.87]
[1756657902111,120.54,203.99,203.88,7.87]
[1756657903002,3.02574324,203.98,203.88,7.87]
[1756657906016,3.02574324,203.95,203.84,11.88854141]
[1756657906216,120.48,203.94,203.84,7.8]
[1756657909918,3.02574324,203.98,203.86,7.8]
[1756657910124,120.6,203.93,203.86,7.8]
[1756657911120,3.02574324,203.98,203.86,7.8]
[1756657911322,120.62,203.97,203.88,3.02574324]
[1756657911522,120.62,203.97,203.89,7.8]
[1756657911721,332.46574324,204.0,203.89,7.8]
[1756657911922,120.6,203.99,203.89,7.8]
[1756657912923,332.46574324,204.0,203.89,7.8]
[1756657913125,120.58,203.99,203.89,7.8]
[1756657914823,120.58,203.99,203.9,4.42064952]
[1756657915023,120.58,203.99,203.91,4.42064952]
[1756657915224,120.58,203.99,203.92,4.42064952]
[1756657915417,120.58,203.99,203.93,4.42064952]
[1756657915614,120.58,203.99,203.94,4.42064952]
[1756657915927,120.58,203.99,203.95,4.42064952]
[1756657916130,120.58,203.99,203.96,4.42064952]
[1756657916330,120.58,203.99,203.97,4.42064952]
[1756657916625,120.58,203.99,203.98,4.42064952]
[1756657918628,120.58,203.99,203.89,7.8]
[1756657918629,121.08,203.99,203.89,7.8]
[1756657918832,3.02574324,203.97,203.89,7.8]
[1756657920532,120.48,203.96,203.89,7.8]
[1756657923636,120.48,203.97,203.93,3.02574324]
[1756657923830,120.48,203.97,203.94,7.8]
[1756657924025,120.48,203.97,203.93,3.02574324]
[1756657924232,329.44,204.0,203.94,7.8]
[1756657924431,329.44,204.0,203.93,3.02574324]
[1756657924432,120.54,203.99,203.93,3.02574324]
[1756657925131,120.54,203.99,203.94,7.8]
[1756657925326,120.54,203.99,203.93,3.02574324]
[1756657925526,120.54,203.99,203.94,7.8]
[1756657925735,120.54,203.99,203.93,3.02574324]
[1756657926138,120.54,203.99,203.92,7.8]
[1756657926436,120.54,203.99,203.92,10.82574324]
[1756657927037,120.54,203.99,203.93,7.8]
[1756657928335,120.54,203.99,203.92,3.02574324]
[1756657928336,120.54,203.99,203.96,7.76]
[1756657928541,5.48003068,204.09,203.98,10.78574324]
[1756657928737,120.48,204.08,203.98,10.78574324]
[1756657930540,120.48,204.08,203.99,4.58683621]
[1756657930736,120.48,204.08,204.0,4.58683621]
[1756657930937,120.48,204.08,204.01,4.58683621]
[1756657931138,120.48,204.08,204.02,4.58683621]
[1756657931439,120.48,204.08,204.03,4.58683621]
[1756657931640,120.48,204.08,204.04,4.58683621]
[1756657931840,120.48,204.08,204.05,4.58683621]
[1756657932040,120.48,204.08,204.06,4.58683621]
[1756657932238,120.48,204.08,204.07,4.58683621]
[1756657934031,120.98,204.08,203.95,3.02574324]
[1756657934237,3.02574324,204.06,203.95,3.02574324]
[1756657935442,3.02574324,204.06,203.94,7.76]
[1756657935645,3.02574324,204.06,203.94,10.78574324]
[1756657937839,3.02574324,204.06,203.95,7.76]
[1756657938045,120.32,204.05,203.97,3.02574324]
[1756657938339,17.5,204.04,203.98,7.76]
[1756657939537,34.02,204.06,203.98,7.76]
[1756657941144,34.02,204.06,203.99,3.02574324]
[1756657942546,34.02,204.06,203.93,4.12612492]
[1756657942547,34.02,204.06,203.94,7.76]
[1756657942747,37.04574324,204.06,203.94,10.78574324]
[1756657944546,3.02574324,204.03,203.94,7.76]
[1756657946149,3.02574324,204.03,203.95,4.56072634]
[1756657946346,3.02574324,204.03,203.94,7.76]
[1756657946347,3.02574324,204.03,203.96,4.56072634]
[1756657946649,3.02574324,204.03,203.97,4.56072634]
[1756657946849,3.02574324,204.03,203.98,4.56072634]
[1756657947049,3.02574324,204.03,203.99,4.56072634]
[1756657947250,3.02574324,204.03,204.0,4.56072634]
[1756657947551,3.02574324,204.03,204.01,4.56072634]
[1756657947752,3.02574324,204.03,203.94,7.76]
[1756657947950,3.02574324,204.03,203.95,4.56152552]
[1756657948248,3.02574324,204.03,203.96,4.56152552]
[1756657948452,3.02574324,204.0,203.97,4.56152552]
[1756657948747,50.08,203.99,203.98,4.56152552]
[1756657951056,53.10574324,203.99,203.98,4.56152552]
[1756657951555,3.02574324,203.99,203.98,4.56152552]
[1756657951754,76.52574324,203.99,203.9,7.76]
[1756657951946,76.52574324,203.99,203.91,4.56378918]
[1756657952148,76.52574324,203.99,203.92,4.56378918]
[1756657952348,76.52574324,203.99,203.93,4.56378918]
[1756657952555,76.52574324,203.99,203.94,4.56378918]
[1756657952756,76.52574324,203.99,203.95,4.56378918]
[1756657952949,76.52574324,203.99,203.96,4.56378918]
[1756657953153,76.52574324,203.99,203.97,4.56378918]
[1756657953352,76.52574324,203.99,203.98,4.56378918]
[1756657954152,3.02574324,203.99,203.98,4.56378918]
[1756657954353,30.34574324,203.99,203.98,4.56378918]
[1756657954659,27.32,203.99,203.98,4.56378918]
[1756657955154,3.02574324,204.02,203.98,4.56378918]
[1756657955355,3.02574324,204.02,203.88,3.02574324]
[1756657955356,24.48,204.01,203.99,4.56664006]
[1756657955555,24.48,204.01,204.0,4.56664006]
[1756657955760,27.50574324,204.01,204.0,4.56664006]
[1756657958361,27.50574324,204.01,203.93,7.76]
[1756657959956,3.02574324,203.98,203.93,7.76]
[1756657961159,3.02574324,203.98,203.89,7.31]
[1756657962967,41.84,203.97,203.89,7.31]
[1756657968370,335.02003068,204.04,203.89,7.31]
[1756657968669,3.02574324,203.97,203.89,7.31]
[1756657968870,120.38,203.96,203.89,7.31]
[1756657969069,3.02574324,203.98,203.89,7.31]
[1756657969369,18.44,203.97,203.89,7.31]
[1756657970371,18.44,203.97,203.9,4.52030389]
[1756657970571,18.44,203.97,203.91,4.52030389]
[1756657970771,18.44,203.97,203.92,4.52030389]
[1756657970971,3.02574324,203.95,203.93,4.52030389]
[1756657971171,3.02574324,203.95,203.94,4.52030389]
[1756657971471,3.02574324,203.95,203.88,7.31]
[1756657974973,18.44,203.97,203.88,7.31]
[1756657975171,3.02574324,203.94,203.88,7.31]
[1756657975376,18.44,203.97,203.88,7.31]
[1756657975674,3.02574324,203.95,203.88,7.31]
[1756657980581,337.76004602,204.04,203.88,7.31]
[1756657980582,35.32,203.96,203.88,7.31]
[1756657984186,51.04,203.97,203.88,7.31]
[1756657985275,54.06574324,203.97,203.88,7.31]
[1756657987286,3.02574324,203.96,203.88,7.31]
[1756657987986,18.12,203.95,203.88,7.31]
[1756657988188,35.22,203.94,203.88,7.31]
[1756657995292,51.24,203.94,203.88,7.31]
[1756658001594,3.02574324,203.99,203.88,7.31]
[1756658001794,66.08,203.97,203.88,7.31]
[1756658002294,5.48003068,204.02,203.88,7.31]
[1756658002499,329.54,204.04,203.96,7.8]
[1756658005600,329.54,204.04,203.96,10.82574324]
[1756658005796,329.54,204.04,203.97,7.8]
[1756658009505,329.54,204.04,203.96,3.02574324]
[1756658010100,329.54,204.04,203.88,8.20625088]
[1756658010101,7.62,204.26,204.04,22.51]
[1756658010302,7.62,204.26,204.18,3.02574324]
[1756658010495,15.54,204.26,204.16,7.8]
[1756658010696,15.54,204.26,204.17,8.26339029]
[1756658010895,0.8524293,204.35,204.07,8.22117622]
[1756658010896,0.8524293,204.35,204.2,3.02574324]
[1756658011197,15.2,204.34,204.21,13.03764705]
[1756658011397,7.62,204.33,204.22,5.23764705]
[1756658011598,7.62,204.33,204.23,5.23764705]
[1756658011803,7.62,204.33,204.24,5.23764705]
[1756658012002,7.62,204.33,204.25,5.23764705]
[1756658012208,7.62,204.33,204.26,5.23764705]
[1756658012402,7.62,204.33,204.27,5.23764705]
[1756658012608,18.22574324,204.34,204.28,10.24747294]
[1756658012902,7.62,204.33,204.29,10.24747294]
[1756658013204,7.62,204.33,204.3,5.00982589]
[1756658013404,7.62,204.33,204.31,5.00982589]
[1756658013606,7.62,204.33,204.21,7.8]
[1756658013806,7.62,204.33,204.22,5.23896912]
[1756658014103,7.62,204.33,204.23,5.23896912]
[1756658014308,7.62,204.33,204.24,5.23896912]
[1756658014498,7.62,204.33,204.25,5.23896912]
[1756658014698,7.62,204.33,204.26,5.23896912]
[1756658014904,7.62,204.33,204.27,5.23896912]
[1756658015104,7.62,204.33,204.28,5.23896912]
[1756658015406,7.62,204.33,204.29,5.23896912]
[1756658015602,7.62,204.33,204.21,7.8]
[1756658015807,7.62,204.33,204.22,5.22590386]
[1756658016010,7.62,204.33,204.23,5.22590386]
[1756658016207,7.62,204.33,204.24,5.22590386]
[1756658016409,7.62,204.33,204.25,5.22590386]
[1756658016606,7.62,204.33,204.26,5.22590386]
[1756658016911,7.62,204.33,204.27,5.22590386]
[1756658017107,7.62,204.33,204.28,5.22590386]
[1756658017311,7.62,204.33,204.29,5.22590386]
[1756658017510,7.62,204.33,204.21,7.8]
[1756658017703,7.62,204.33,204.22,5.21664566]
[1756658017905,7.62,204.33,204.23,5.21664566]
[1756658018109,7.62,204.33,204.21,7.8]
[1756658018309,7.62,204.33,204.22,5.21664742]
[1756658018610,7.62,204.33,204.23,5.21664742]
[1756658018804,3.02574324,204.31,204.24,5.21664742]
[1756658019009,7.59,204.3,204.25,5.21664742]
[1756658019205,7.59,204.3,204.26,5.21664742]
[1756658019409,7.59,204.3,204.27,5.21664742]
[1756658019610,61.6,204.31,204.28,5.21664742]
[1756658019806,61.6,204.31,204.25,3.02574324]
[1756658019807,61.6,204.31,204.29,5.21664742]
[1756658020011,61.6,204.31,204.3,5.21664742]
[1756658021212,3.02574324,204.41,204.3,12.78664742]
[1756658021512,131.75,204.4,204.31,5.21664742]
[1756658021713,131.75,204.4,204.3,7.57]
[1756658021714,131.75,204.4,204.32,5.21664742]
[1756658021913,131.75,204.4,204.33,5.15007292]
[1756658022109,131.75,204.4,204.34,5.15007292]
[1756658022314,131.75,204.4,204.3,7.57]
[1756658022517,131.75,204.4,204.31,5.14587418]
[1756658022816,131.75,204.4,204.32,5.14587418]
[1756658023113,131.75,204.4,204.3,7.57]
[1756658023114,131.75,204.4,204.33,5.14587418]
[1756658023317,131.75,204.4,204.34,5.14587418]
[1756658023505,124.16,204.4,204.35,5.14587418]
[1756658023708,7.59,204.39,204.36,5.14587418]
[1756658023907,7.59,204.39,204.37,5.14587418]
[1756658024109,7.59,204.39,204.3,7.57]
[1756658024312,7.59,204.39,204.31,5.12764425]
[1756658024509,7.59,204.39,204.32,5.12764425]
[1756658024712,10.61574324,204.39,204.33,5.12764425]
[1756658025010,10.61574324,204.39,204.34,5.12764425]
[1756658025213,10.61574324,204.39,204.35,5.12764425]
[1756658025509,7.59,204.38,204.36,5.12764425]
[1756658025713,7.59,204.37,204.28,7.57]
[1756658025914,7.59,204.37,204.29,4.55484943]
[1756658026115,7.59,204.37,204.3,4.55484943]
[1756658026316,7.59,204.37,204.31,4.55484943]
[1756658026520,7.59,204.38,204.28,7.57]
[1756658026721,7.59,204.38,204.29,4.55241969]
[1756658027018,7.59,204.38,204.3,4.55241969]
[1756658027219,7.59,204.38,204.31,4.55241969]
[1756658027414,7.59,204.38,204.32,4.55241969]
[1756658027616,7.59,204.38,204.28,7.57]
[1756658027815,7.59,204.38,204.29,4.55035848]
[1756658028017,7.59,204.38,204.3,4.55035848]
[1756658028217,7.59,204.38,204.31,4.55035848]
[1756658028413,7.59,204.38,204.32,4.55035848]
[1756658028624,7.59,204.38,204.28,7.57]
[1756658028823,7.59,204.38,204.29,4.54858569]
[1756658029121,7.59,204.38,204.3,4.54858569]
[1756658029321,7.59,204.38,204.31,4.54858569]
[1756658029521,7.59,204.38,204.32,4.54858569]
[1756658029823,7.59,204.38,204.28,7.57]
[1756658030017,7.59,204.38,204.29,4.54700564]
[1756658030223,7.59,204.38,204.3,4.54700564]
[1756658030523,7.59,204.38,204.31,4.54700564]
[1756658030714,7.59,204.38,204.32,4.54700564]
[1756658030918,7.59,204.38,204.28,7.57]
[1756658031115,7.59,204.38,204.29,4.54570989]
[1756658031318,7.59,204.38,204.3,4.54570989]
[1756658031519,7.59,204.38,204.31,4.54570989]
[1756658031720,7.59,204.38,204.32,4.54570989]
[1756658031916,7.59,204.38,204.33,4.54570989]
[1756658032117,7.59,204.38,204.28,7.57]
[1756658032118,7.59,204.38,204.34,4.54570989]
[1756658032317,7.59,204.38,204.28,7.57]
[1756658032526,7.59,204.38,204.29,4.54516933]
[1756658032726,7.59,204.38,204.3,4.54516933]
[1756658032930,7.59,204.38,204.31,4.54516933]
[1756658033125,7.59,204.38,204.32,4.54516933]
[1756658033320,7.59,204.38,204.28,7.57]
[1756658033321,3.02574324,204.39,204.33,4.54516933]
[1756658033526,7.59,204.38,204.34,4.54516933]
[1756658033722,3.02574324,204.39,204.35,4.54516933]
[1756658033922,7.59,204.38,204.28,7.57]
[1756658034226,7.59,204.38,204.29,4.54521298]
[1756658034428,7.59,204.38,204.3,4.54521298]
[1756658034727,7.59,204.38,204.31,4.54521298]
[1756658034926,7.59,204.38,204.32,4.54521298]
[1756658035123,7.59,204.38,204.33,4.54521298]
[1756658035323,7.59,204.38,204.34,12.11521298]
[1756658035529,7.59,204.38,204.35,4.54521298]
[1756658035729,131.75,204.4,204.36,4.54521298]
[1756658035929,131.75,204.4,204.37,4.54521298]
[1756658036126,131.75,204.4,204.33,7.57]
[1756658036327,131.75,204.4,204.34,4.54614787]
[1756658036526,123.38,204.39,204.35,4.54614787]
[1756658036829,123.38,204.39,204.37,7.57]
[1756658037023,123.38,204.39,204.38,4.54614787]
[1756658039637,123.38,204.39,204.35,7.57]
[1756658039838,123.38,204.39,204.36,12.12032896]
[1756658040134,123.38,204.39,204.36,7.57]
[1756658040335,123.38,204.39,204.37,4.55032896]
[1756658040537,123.38,204.39,204.38,4.55032896]
[1756658045041,130.97,204.39,204.38,4.55032896]
[1756658045642,133.99574324,204.39,204.38,4.55032896]
[1756658046039,133.99574324,204.39,204.3,7.57]
[1756658046338,133.99574324,204.39,204.31,3.85594412]
[1756658046542,133.99574324,204.39,204.32,3.85594412]
[1756658046744,133.99574324,204.39,204.3,7.57]
[1756658046945,133.99574324,204.39,204.31,3.86058861]
[1756658047144,133.99574324,204.39,204.32,3.86058861]
[1756658047345,133.99574324,204.39,204.33,3.86592171]
[1756658047544,133.99574324,204.39,204.3,7.57]
[1756658047847,130.97,204.39,204.31,3.86597178]
[1756658048144,7.44,204.37,204.3,7.57]
[1756658048345,7.44,204.37,204.31,3.86438774]
[1756658048541,3.02574324,204.38,204.32,3.86438774]
[1756658048741,7.44,204.37,204.3,7.57]
[1756658049040,7.44,204.37,204.31,3.86801589]
[1756658049235,3.02574324,204.38,204.32,3.86801589]
[1756658049439,7.44,204.37,204.33,3.86801589]
[1756658049638,7.44,204.37,204.28,4.0241301]
[1756658049842,7.44,204.37,204.29,3.87219785]
[1756658050038,7.44,204.37,204.3,3.87219785]
[1756658050234,7.44,204.37,204.31,3.87219785]
[1756658050438,7.44,204.37,204.32,3.87219785]
[1756658050637,3.02574324,204.38,204.27,11.5941301]
[1756658050844,3.02574324,204.35,204.28,3.87702042]
[1756658051146,7.44,204.33,204.29,3.87702042]
[1756658051346,122.78,204.34,204.3,3.87702042]
[1756658051539,122.78,204.34,204.31,3.87702042]
[1756658051846,7.44,204.33,204.32,3.87702042]
[1756658053148,122.78,204.34,204.27,7.57]
[1756658053344,122.78,204.34,204.28,7.86027819]
[1756658053652,7.44,204.33,204.29,3.83614809]
[1756658053847,122.78,204.34,204.3,3.83614809]
[1756658054043,7.44,204.33,204.31,3.83614809]
[1756658054240,7.44,204.33,204.32,3.83614809]
[1756658054545,130.14,204.33,204.32,3.83614809]
[1756658056248,7.44,204.33,204.32,3.83614809]
[1756658056445,130.06,204.33,204.32,3.83614809]
[1756658056840,122.6,204.33,204.32,3.83614809]
[1756658057148,122.58,204.33,204.32,11.40614809]
[1756658057446,7.44,204.39,204.32,7.86027819]
[1756658057746,3.02574324,204.34,204.33,3.83614809]
[1756658057950,133.04574324,204.34,204.33,3.83614809]
[1756658058346,133.52574324,204.34,204.24,4.0241301]
[1756658058546,10.46574324,204.31,204.24,4.0241301]
[1756658058846,122.6,204.3,204.24,4.0241301]
[1756658059952,122.6,204.3,204.25,7.57]
[1756658060152,122.6,204.3,204.24,11.5941301]
[1756658061550,7.44,204.33,204.26,11.5941301]
[1756658061852,122.58,204.32,204.26,7.57]
[1756658062549,7.44,204.31,204.26,7.57]
[1756658062955,130.02,204.32,204.26,7.57]
[1756658064046,122.46,204.31,204.26,7.57]
[1756658064244,122.46,204.31,204.25,4.0241301]
[1756658064653,122.44,204.3,204.26,7.57]
[1756658064855,122.44,204.3,204.25,4.0241301]
[1756658065053,122.42,204.29,204.25,4.0241301]
[1756658065255,122.42,204.29,204.26,7.57]
[1756658065454,122.42,204.29,204.25,4.0241301]
[1756658066159,122.42,204.29,204.26,7.57]
[1756658066354,122.42,204.29,204.26,4.0241301]
[1756658066657,122.42,204.29,204.27,7.57]
[1756658066856,122.42,204.29,204.26,4.1148208]
[1756658067257,122.42,204.29,204.27,7.57]
[1756658067458,122.42,204.29,204.26,7.57]
[1756658067757,122.42,204.29,204.25,4.1148208]
[1756658068153,129.86,204.29,204.26,7.57]
[1756658068358,122.42,204.29,204.23,4.1148208]
[1756658068560,7.44,204.28,204.22,4.1148208]
[1756658068857,7.44,204.28,204.21,11.6848208]
[1756658072961,7.44,204.28,204.21,7.57]
[1756658073260,122.22,204.27,204.21,7.57]
[1756658076057,7.44,204.35,204.21,11.6848208]
[1756658076360,7.44,204.33,204.22,11.6848208]
[1756658076561,7.44,204.33,204.23,7.57]
[1756658076761,7.44,204.3,204.2,4.1148208]
[1756658076964,3.02574324,204.31,204.19,108.26525222]
[1756658077161,7.44,204.3,204.19,108.26525222]
[1756658077369,3.02574324,204.31,204.19,108.26525222]
[1756658078052,7.71,204.3,204.19,108.26525222]
[1756658078254,3.02574324,204.31,204.19,108.26525222]
[1756658079158,7.71,204.33,204.19,108.26525222]
[1756658079364,7.71,204.29,204.19,104.15043142]
[1756658079562,122.1,204.28,204.19,104.15043142]
[1756658079758,122.1,204.28,204.17,3.02574324]
[1756658079759,10.73574324,204.27,204.16,4.1148208]
[1756658080058,7.71,204.23,204.15,7.77]
[1756658080262,122.18,204.22,204.15,7.77]
[1756658080463,7.71,204.21,204.15,7.77]
[1756658087376,3.02574324,204.24,204.15,7.77]
[1756658087668,122.06,204.2,204.14,7.77]
[1756658088671,7.71,204.25,204.14,7.77]
[1756658088872,34.2,204.24,204.14,7.77]
[1756658089069,34.2,204.24,204.17,7.77]
[1756658094272,7.71,204.23,204.17,7.77]
[1756658095180,7.71,204.23,204.14,10.79574324]
[1756658095377,7.71,204.23,204.15,7.77]
[1756658099876,7.71,204.23,204.12,4.1148208]
[1756658100078,7.71,204.19,204.11,7.77]